fUST/lending_fUST_20251130
["ID","MTS","AMOUNT","RATE_DAILY","PERIOD"]
[395160298,1764493493407,-500.0,7.923e-05,2]
[395160299,1764493493438,-500.0,7.923e-05,2]
[395160300,1764493493654,-500.0,7.923e-05,2]
[395160301,1764493493684,-500.0,7.923e-05,2]
[395160302,1764493493712,-500.0,7.923e-05,2]
[395160303,1764493493740,-500.0,7.923e-05,2]
[395160304,1764493493770,-500.0,7.923e-05,2]
[395160305,1764493493800,-500.0,7.923e-05,2]
[395160306,1764493493829,-500.0,7.923e-05,2]
[395160307,1764493493858,-500.0,7.923e-05,2]
[395160308,1764493493887,-500.0,7.923e-05,2]
[395160309,1764493493915,-435.22838808,7.923e-05,2]
[395160310,1764493494017,-129.55322384,7.923e-05,2]
[395160311,1764493494049,-500.0,7.923e-05,2]
[395160312,1764493494079,-500.0,7.923e-05,2]
[395160313,1764493494110,-500.0,7.923e-05,2]
[395160314,1764493494141,-500.0,7.923e-05,2]
[395160315,1764493494170,-500.0,7.923e-05,2]
[395160316,1764493494203,-500.0,7.923e-05,2]
[395160317,1764493494234,-300.0,7.923e-05,2]
[395160318,1764493494265,-500.0,7.923e-05,2]
[395160319,1764493494294,-500.0,7.923e-05,2]
[395160320,1764493494326,-299.70396044,7.923e-05,2]
[395160321,1764493494355,-41.49563144,7.923e-05,2]
[395160322,1764493494494,-458.50436856,7.923e-05,2]
[395160323,1764493494522,-500.0,7.923e-05,2]
[395160324,1764493494551,-500.0,7.923e-05,2]
[395160325,1764493494579,-500.0,7.923e-05,2]
[395160326,1764493494608,-500.0,7.923e-05,2]
[395160327,1764493494636,-500.0,7.923e-05,2]
[395160328,1764493494665,-500.0,7.923e-05,2]
[395160329,1764493494693,-500.0,7.923e-05,2]
[395160330,1764493494722,-500.0,7.923e-05,2]
[395160331,1764493494753,-500.0,7.923e-05,2]
[395160332,1764493494934,-500.0,7.923e-05,2]
[395160333,1764493494962,-500.0,7.923e-05,2]
[395160334,1764493494990,-500.0,7.923e-05,2]
[395160335,1764493495018,-500.0,7.923e-05,2]
[395160336,1764493495046,-500.0,7.923e-05,2]
[395160337,1764493495074,-500.0,7.923e-05,2]
[395160338,1764493495102,-185.34041537,7.923e-05,2]
[395160339,1764493495130,-500.0,7.923e-05,2]
[395160340,1764493495159,-500.0,7.923e-05,2]
[395160341,1764493495189,-500.0,7.923e-05,2]
[395160342,1764493495218,-129.32916926,7.923e-05,2]
[395160343,1764493496001,-206.78271788,7.923e-05,2]
[395160344,1764493499120,-163.88811286,7.923e-05,2]
[395160345,1764493499148,-500.0,7.923e-05,2]
[395160346,1764493499176,-500.0,7.923e-05,2]
[395160347,1764493499204,-500.0,7.923e-05,2]
[395160348,1764493499232,-310.85782968,7.923e-05,2]
[395160349,1764493499259,-500.0,7.923e-05,2]
[395160350,1764493499286,-500.0,7.923e-05,2]
[395160351,1764493499314,-500.0,7.923e-05,2]
[395160352,1764493499342,-500.0,7.923e-05,2]
[395160353,1764493499369,-500.0,7.923e-05,2]
[395160354,1764493499401,-500.0,7.923e-05,2]
[395160355,1764493499739,-524.98970671,7.923e-05,2]
[395160356,1764493499767,-500.0,7.923e-05,2]
[395160357,1764493499794,-500.0,7.923e-05,2]
[395160358,1764493499829,-500.0,7.923e-05,2]
[395160359,1764493499857,-500.0,7.923e-05,2]
[395160360,1764493499886,-500.0,7.923e-05,2]
[395160361,1764493499914,-500.0,7.923e-05,2]
[395160362,1764493499942,-500.0,7.923e-05,2]
[395160363,1764493499969,-500.0,7.923e-05,2]
[395160364,1764493499996,-450.03058658,7.923e-05,2]
[395160365,1764493500433,-49.96941342,7.923e-05,2]
[395160366,1764493500462,-500.0,7.923e-05,2]
[395160367,1764493500494,-500.0,7.923e-05,2]
[395160368,1764493500524,-500.0,7.923e-05,2]
[395160369,1764493500561,-500.0,7.923e-05,2]
[395160370,1764493500591,-500.0,7.923e-05,2]
[395160371,1764493500621,-500.0,7.923e-05,2]
[395160372,1764493500651,-500.0,7.923e-05,2]
[395160373,1764493500685,-500.0,7.923e-05,2]
[395160374,1764493500717,-500.0,7.923e-05,2]
[395160375,1764493500746,-400.07117316,7.923e-05,2]
[395160378,1764493505543,-1200.0,7.843e-05,2]
[395160379,1764493505572,-300.0,7.922e-05,2]
[395160380,1764493505601,-300.0,7.922e-05,2]
[395160381,1764493505630,-300.0,7.922e-05,2]
[395160382,1764493505658,-300.0,7.922e-05,2]
[395160383,1764493505689,-99.92882684,7.923e-05,2]
[395160384,1764493505720,-500.0,7.923e-05,2]
[395160385,1764493505750,-500.0,7.923e-05,2]
[395160386,1764493505781,-500.0,7.923e-05,2]
[395160387,1764493505811,-500.0,7.923e-05,2]
[395160388,1764493505841,-500.0,7.923e-05,2]
[395160389,1764493506021,-500.0,7.923e-05,2]
[395160390,1764493506050,-500.0,7.923e-05,2]
[395160391,1764493506079,-500.0,7.923e-05,2]
[395160392,1764493506107,-500.0,7.923e-05,2]
[395160393,1764493506136,-500.0,7.923e-05,2]
[395160394,1764493506165,-500.0,7.923e-05,2]
[395160395,1764493506195,-500.0,7.923e-05,2]
[395160396,1764493506224,-500.0,7.923e-05,2]
[395160397,1764493506252,-500.0,7.923e-05,2]
[395160398,1764493506439,-500.0,7.923e-05,2]
[395160399,1764493506770,-500.0,7.923e-05,2]
[395160400,1764493506801,-500.0,7.923e-05,2]
[395160401,1764493506834,-209.10461954,7.923e-05,2]
[395160402,1764493506866,-500.0,7.923e-05,2]
[395160403,1764493506896,-500.0,7.923e-05,2]
[395160404,1764493506927,-500.0,7.923e-05,2]
[395160405,1764493506956,-500.0,7.923e-05,2]
[395160406,1764493506985,-500.0,7.923e-05,2]
[395160407,1764493507013,-500.0,7.923e-05,2]
[395160408,1764493507043,-500.0,7.923e-05,2]
[395160409,1764493507071,-81.80076092,7.923e-05,2]
[395160410,1764493507181,-418.19923908,7.923e-05,2]
[395160411,1764493507211,-500.0,7.923e-05,2]
[395160412,1764493507239,-500.0,7.923e-05,2]
[395160413,1764493507266,-500.0,7.923e-05,2]
[395160414,1764493507294,-500.0,7.923e-05,2]
[395160415,1764493507324,-500.0,7.923e-05,2]
[395160416,1764493507354,-500.0,7.923e-05,2]
[395160417,1764493507384,-500.0,7.923e-05,2]
[395160418,1764493507420,-500.0,7.923e-05,2]
[395160419,1764493507449,-500.0,7.923e-05,2]
[395160420,1764493507908,-231.9296042,7.923e-05,2]
[395160421,1764493522406,-300.0,7.843e-05,2]
[395160422,1764493524928,-408.71259583,7.843e-05,2]
[395160423,1764493559066,-91.22806977,7.843e-05,2]
[395160424,1764493559088,-114.77540395,7.883e-05,2]
[395160425,1764493573330,463.75018312,7.804e-05,2]
[395160426,1764493575480,-209.58641218,7.883e-05,2]
[395160427,1764493581176,254.16377094,7.804e-05,2]
[395160428,1764493582441,-254.16377094,7.883e-05,2]
[395160429,1764493583646,870.55331644,7.782e-05,2]
[395160430,1764493610026,-257.95329304,7.765e-05,2]
[395160431,1764493614778,-287.88293602,7.765e-05,2]
[395160432,1764493616320,-239.21321851,7.765e-05,2]
[395160433,1764493619413,-218.68026489,7.765e-05,2]
[395160434,1764493641865,-175.67066949,7.687e-05,2]
[395160441,1764493740031,189.8631296,6.977e-05,2]
[395160442,1764493757116,-320.59961805,7.687e-05,2]
[395160443,1764493757137,-496.27028754,7.765e-05,2]
[395160444,1764493757158,-1500.0,7.843e-05,2]
[395160445,1764493757179,-300.0,7.92e-05,2]
[395160446,1764493757200,-1200.0,7.921e-05,2]
[395160447,1764493757222,-500.0,7.921e-05,2]
[395160448,1764493757242,-221.10881598,7.921e-05,2]
[395160449,1764493757265,-500.0,7.921e-05,2]
[395160450,1764493757287,-500.0,7.921e-05,2]
[395160451,1764493757308,-200.0,7.921e-05,2]
[395160452,1764493757331,-500.0,7.921e-05,2]
[395160453,1764493757354,-500.0,7.921e-05,2]
[395160454,1764493757375,-500.0,7.921e-05,2]
[395160455,1764493757398,-500.0,7.921e-05,2]
[395160456,1764493757421,-205.89245548,7.921e-05,2]
[395160457,1764493757442,-500.0,7.921e-05,2]
[395160458,1764493757464,-199.96710672,7.921e-05,2]
[395160459,1764493757490,-500.0,7.921e-05,2]
[395160460,1764493757511,-500.0,7.921e-05,2]
[395160461,1764493757534,-500.0,7.921e-05,2]
[395160462,1764493757557,-500.0,7.921e-05,2]
[395160463,1764493757579,-500.0,7.921e-05,2]
[395160464,1764493757601,-500.0,7.921e-05,2]
[395160465,1764493757623,-500.0,7.921e-05,2]
[395160466,1764493757644,-500.0,7.921e-05,2]
[395160467,1764493757666,-538.59100104,7.921e-05,2]
[395160468,1764493757687,-500.0,7.921e-05,2]
[395160469,1764493757709,-500.0,7.921e-05,2]
[395160470,1764493757730,-500.0,7.921e-05,2]
[395160471,1764493757751,-259.69225881,7.921e-05,2]
[395160472,1764493757783,-500.0,7.921e-05,2]
[395160473,1764493757808,-500.0,7.921e-05,2]
[395160474,1764493757833,-279.60827408,7.921e-05,2]
[395160475,1764493757857,-500.0,7.921e-05,2]
[395160476,1764493757880,-500.0,7.921e-05,2]
[395160477,1764493757902,-500.0,7.921e-05,2]
[395160478,1764493757923,-500.0,7.921e-05,2]
[395160479,1764493757946,-500.0,7.921e-05,2]
[395160480,1764493757970,-500.0,7.921e-05,2]
[395160481,1764493757992,-500.0,7.921e-05,2]
[395160482,1764493758015,-500.0,7.921e-05,2]
[395160483,1764493758037,-500.0,7.921e-05,2]
[395160484,1764493758060,-500.0,7.921e-05,2]
[395160485,1764493758084,-500.0,7.921e-05,2]
[395160486,1764493758318,-500.0,7.921e-05,2]
[395160487,1764493758343,-500.0,7.921e-05,2]
[395160488,1764493758365,-500.0,7.921e-05,2]
[395160489,1764493758388,-500.0,7.921e-05,2]
[395160490,1764493758409,-500.0,7.921e-05,2]
[395160491,1764493758435,-500.0,7.921e-05,2]
[395160492,1764493758458,-500.0,7.921e-05,2]
[395160493,1764493758485,-500.0,7.921e-05,2]
[395160494,1764493758508,-500.0,7.921e-05,2]
[395160495,1764493758530,-500.0,7.921e-05,2]
[395160496,1764493758554,-500.0,7.921e-05,2]
[395160497,1764493758575,-500.0,7.921e-05,2]
[395160498,1764493758597,-287.42305549,7.921e-05,2]
[395160500,1764493762087,-212.57694451,7.921e-05,2]
[395160501,1764493762111,-500.0,7.921e-05,2]
[395160502,1764493762134,-500.0,7.921e-05,2]
[395160503,1764493762155,-500.0,7.921e-05,2]
[395160504,1764493762177,-500.0,7.921e-05,2]
[395160505,1764493762198,-500.0,7.921e-05,2]
[395160506,1764493762220,-500.0,7.921e-05,2]
[395160507,1764493762241,-500.0,7.921e-05,2]
[395160508,1764493762261,-306.6324732,7.921e-05,2]
[395160509,1764493762283,-500.0,7.921e-05,2]
[395160510,1764493762304,-500.0,7.921e-05,2]
[395160511,1764493762325,-1200.0,7.922e-05,2]
[395160512,1764493762349,-2543.75091199,7.924e-05,2]
[395160514,1764493808240,-4980.80058229,7.764e-05,2]
[395160515,1764493808825,-38.40883542,7.764e-05,2]
[395160516,1764493808860,-215.0,7.764e-05,2]
[395160517,1764493809286,1200.0,7.763e-05,2]
[395160518,1764493815770,900.0,7.763e-05,2]
[395160519,1764493824120,-300.0,7.841e-05,2]
[395160520,1764493824150,-300.0,7.841e-05,2]
[395160521,1764493824177,-300.0,7.841e-05,2]
[395160550,1764493832340,-1038.83719804,7.842e-05,2]
[395160552,1764493832351,-1091.58912253,7.842e-05,2]
[395160553,1764493832362,-2888.78309714,7.842e-05,2]
[395160554,1764493832371,-985.29845516,7.924e-05,2]
[395160555,1764493837826,-500.0,7.923e-05,2]
[395160556,1764493837933,-4.287889,7.923e-05,2]
[395160557,1764493837943,-268.52478315,7.923e-05,2]
[395160558,1764493840570,-2e-08,7.844e-05,2]
[395160559,1764493840604,-1202.02214166,7.844e-05,2]
[395160560,1764493840633,-231.47521685,7.923e-05,2]
[395160561,1764493840662,-197.73425268,7.923e-05,2]
[395160562,1764493840682,-2026.10387188,7.924e-05,2]
[395160570,1764493845818,-7199.99999992,7.924e-05,2]
[395160571,1764493846183,-1185.82761287,7.924e-05,2]
[395160572,1764493853544,6737.54677762,7.845e-05,2]
[395160573,1764493853568,6234.526354,7.845e-05,2]
[395160574,1764493857234,-9319.69841456,7.924e-05,2]
[395160575,1764493857551,-10000.01,7.924e-05,2]
[395160576,1764493858049,-10000.01,7.924e-05,2]
[395160577,1764493860478,-10000.01,7.924e-05,2]
[395160578,1764493861439,3765.483646,7.845e-05,2]
[395160579,1764493861461,2069.05094782,7.845e-05,2]
[395160580,1764493862367,300.0,7.923e-05,2]
[395160581,1764493863319,-3865.47540618,7.924e-05,2]
[395160582,1764493863532,-10000.01,7.924e-05,2]
[395160583,1764493871980,-10000.01,7.924e-05,2]
[395160584,1764493872151,-10000.01,7.924e-05,2]
[395160585,1764493872535,-500.0,7.923e-05,2]
[395160586,1764493872564,-500.0,7.923e-05,2]
[395160587,1764493873030,-500.0,7.923e-05,2]
[395160588,1764493873040,-7500.01,7.924e-05,2]
[395160589,1764493878938,-10000.01,7.924e-05,2]
[395160590,1764493879326,-10000.01,7.924e-05,2]
[395160591,1764493879562,-10000.01,7.924e-05,2]
[395160592,1764493879804,-10000.01,7.924e-05,2]
[395160593,1764493879946,-10000.01,7.924e-05,2]
[395160594,1764493888033,-10000.01,7.924e-05,2]
[395160595,1764493888185,-10000.01,7.924e-05,2]
[395160596,1764493891446,-10000.01,7.924e-05,2]
[395160597,1764493891612,-10000.01,7.924e-05,2]
[395160598,1764493893665,-10000.01,7.924e-05,2]
[395160599,1764493893901,-10000.01,7.924e-05,2]
[395160600,1764493922406,150.53,1e-05,2]
[395160601,1764493923323,150.53,1.3e-05,2]
[395160602,1764493923687,150.53,1.6e-05,2]
[395160603,1764493924020,150.53,1.9e-05,2]
[395160604,1764493924391,150.53,2.3e-05,2]
[395160605,1764493957498,-609.47736233,7.589e-05,2]
[395160606,1764493958908,-246.61421166,7.589e-05,2]
[395160607,1764493960976,-232.66817436,7.589e-05,2]
[395160613,1764494422991,-628.85940506,6.786e-05,2]
[395160614,1764494425178,-325.30561919,6.786e-05,2]
[395160615,1764494427336,-393.14790668,6.786e-05,2]
[395160616,1764494429519,-254.36532895,6.718e-05,2]
[395160617,1764494429541,-186.46500784,6.786e-05,2]
[395160618,1764494433091,-434.95821368,6.786e-05,2]
[395160619,1764494434673,-379.510698,6.786e-05,2]
[395160620,1764494438766,-358.37714409,6.786e-05,2]
[395160621,1764494440265,-325.68892793,6.786e-05,2]
[395160622,1764494443977,-194.02701653,6.786e-05,2]
[395160623,1764494446052,-300.0,6.786e-05,2]
[395160624,1764494448187,-245.32584186,6.786e-05,2]
[395160625,1764494451787,-286.26214901,6.786e-05,2]
[395160626,1764494454504,-433.73785099,6.786e-05,2]
[395160627,1764494458560,-219.16676745,6.786e-05,2]
[395160628,1764494461160,-190.49077399,6.786e-05,2]
[395160629,1764494461181,-21.07550397,6.855e-05,2]
[395160630,1764494462660,-573.10198341,6.855e-05,2]
[395160631,1764494464974,-556.17082852,6.786e-05,2]
[395160632,1764494468796,-368.61203452,6.786e-05,2]
[395160633,1764494470532,-157.18572837,6.786e-05,2]
[395160634,1764494472835,-243.20720629,6.786e-05,2]
[395160635,1764494475355,-307.95638937,6.786e-05,2]
[395160636,1764494478933,-313.3545522,6.786e-05,2]
[395160637,1764494483217,-248.05679264,6.786e-05,2]
[395160638,1764494484770,-294.91304623,6.786e-05,2]
[395160639,1764494486261,-319.07503242,6.786e-05,2]
[395160640,1764494486785,301.16359566,6.686e-05,2]
[395160641,1764494488727,-546.74161159,6.786e-05,2]
[395160642,1764494490989,-111.74858353,6.786e-05,2]
[395160643,1764494491011,-102.68270804,6.821e-05,2]
[395160644,1764494494241,-476.78222555,6.821e-05,2]
[395160646,1764494505648,-27.53934103,6.821e-05,2]
[395160647,1764494505671,-219.44577988,6.855e-05,2]
[395160648,1764494509077,-162.02735811,6.855e-05,2]
[395160649,1764494526895,-211.72877927,6.855e-05,2]
[395160650,1764494528590,-300.0,6.855e-05,2]
[395160651,1764494530141,-206.85345083,6.855e-05,2]
[395160656,1764494533074,-505.0,6.855e-05,2]
[395160657,1764494535207,-289.23874662,6.855e-05,2]
[395160658,1764494537815,-231.28369723,6.855e-05,2]
[395160659,1764494540434,-500.0,6.855e-05,2]
[395160661,1764494543148,-318.13235162,6.855e-05,2]
[395160662,1764494544708,-302.0,6.855e-05,2]
[395160665,1764494548381,-261.86539424,6.855e-05,2]
[395160666,1764494549449,1061.43567136,6.786e-05,2]
[395160667,1764494550519,-423.61306788,6.855e-05,2]
[395160668,1764494571601,375.95720924,6.786e-05,2]
[395160669,1764494593593,375.95720924,6.786e-05,2]
[395160670,1764494609074,375.95720924,6.786e-05,2]
[395160671,1764494616884,375.95720924,6.786e-05,2]
[395160673,1764494632060,375.95720924,6.786e-05,2]
[395160674,1764494639915,375.95720924,6.786e-05,2]
[395160675,1764494655581,375.95720924,6.786e-05,2]
[395160676,1764494663404,375.95720924,6.786e-05,2]
[395160677,1764494678892,375.95720924,6.786e-05,2]
[395160678,1764494686687,375.95720924,6.786e-05,2]
[395160679,1764494700386,206.73576502,6.686e-05,2]
[395160680,1764494702282,375.95720924,6.786e-05,2]
[395160681,1764494710267,375.95720924,6.786e-05,2]
[395160682,1764494725262,375.95720924,6.786e-05,2]
[395160683,1764494733111,375.95720924,6.786e-05,2]
[395160684,1764494748469,375.95720924,6.786e-05,2]
[395160685,1764494756465,375.95720924,6.786e-05,2]
[395160687,1764494771669,375.95720924,6.786e-05,2]
[395160688,1764494794077,375.95720924,6.786e-05,2]
[395160689,1764494816850,375.95720924,6.786e-05,2]
[395160690,1764494825386,-220.54753976,6.855e-05,2]
[395160691,1764494839983,155.40966948,6.786e-05,2]
[395160692,1764494862622,155.40966948,6.786e-05,2]
[395160693,1764494885894,155.40966948,6.786e-05,2]
[395160704,1764494908322,155.40966948,6.786e-05,2]
[395160706,1764494909861,174.62180291,0.00013504,15]
[395160732,1764494931136,155.40966948,6.786e-05,2]
[395160740,1764494944335,169.786493,3.343e-05,2]
[395160741,1764494944517,169.786493,5.015e-05,2]
[395160742,1764494944728,169.786493,6.687e-05,2]
[395160745,1764494948090,-155.40966948,6.855e-05,2]
[395160746,1764494948111,-603.04443871,7.222e-05,2]
[395160747,1764494948132,-300.0,7.329e-05,2]
[395160748,1764494948153,-336.190867,7.33e-05,2]
[395160749,1764494948174,-605.1435606,7.33e-05,2]
[395160750,1764494948196,-1075.8107744,7.33e-05,2]
[395160751,1764494948217,-1679.27338067,7.33e-05,2]
[395160752,1764494948238,-214.0,7.589e-05,2]
[395160753,1764494948259,-1080.134,7.668e-05,2]
[395160754,1764494948281,-184.402,7.668e-05,2]
[395160755,1764494948300,-220.0,7.7e-05,2]
[395160756,1764494948321,-382.2452215,7.7e-05,2]
[395160757,1764494948344,-211.7619688,7.7e-05,2]
[395160758,1764494948365,-282.0,7.715e-05,2]
[395160759,1764494948385,-300.0,7.715e-05,2]
[395160760,1764494948406,-1200.0,7.715e-05,2]
[395160761,1764494948427,-1200.0,7.715e-05,2]
[395160762,1764494948449,-400.01011524,7.716e-05,2]
[395160763,1764494948470,-457.15441742,7.716e-05,2]
[395160764,1764494948491,-713.58947344,7.716e-05,2]
[395160765,1764494948512,-500.0,7.819e-05,2]
[395160766,1764494948534,-500.0,7.819e-05,2]
[395160767,1764494948561,-500.0,7.819e-05,2]
[395160768,1764494948582,-500.0,7.819e-05,2]
[395160769,1764494948604,-500.0,7.819e-05,2]
[395160770,1764494948624,-500.0,7.819e-05,2]
[395160771,1764494948645,-500.0,7.819e-05,2]
[395160772,1764494948665,-500.0,7.819e-05,2]
[395160773,1764494948686,-500.0,7.819e-05,2]
[395160774,1764494948711,-500.0,7.819e-05,2]
[395160775,1764494948746,-500.0,7.819e-05,2]
[395160776,1764494948774,-486.17798011,7.819e-05,2]
[395160777,1764494948805,-500.0,7.819e-05,2]
[395160778,1764494948836,-500.0,7.819e-05,2]
[395160779,1764494948869,-500.0,7.819e-05,2]
[395160780,1764494948901,-500.0,7.819e-05,2]
[395160781,1764494948933,-500.0,7.819e-05,2]
[395160782,1764494948962,-500.0,7.819e-05,2]
[395160783,1764494948994,-500.0,7.819e-05,2]
[395160784,1764494949020,-500.0,7.819e-05,2]
[395160785,1764494949049,-500.0,7.819e-05,2]
[395160786,1764494949079,-500.0,7.819e-05,2]
[395160788,1764494949111,-500.0,7.819e-05,2]
[395160790,1764494949141,-267.23227428,7.819e-05,2]
[395160797,1764494959372,-1496.66244168,7.741e-05,2]
[395160803,1764494969081,-1732.55445771,7.741e-05,2]
[395160807,1764494971069,-1370.17306363,7.741e-05,2]
[395160808,1764494971089,-232.76772572,7.819e-05,2]
[395160809,1764494971108,-500.0,7.819e-05,2]
[395160810,1764494971129,-500.0,7.819e-05,2]
[395160811,1764494971150,-500.0,7.819e-05,2]
[395160812,1764494971170,-500.0,7.819e-05,2]
[395160813,1764494971189,-500.0,7.819e-05,2]
[395160814,1764494971211,-500.0,7.819e-05,2]
[395160815,1764494971230,-500.0,7.819e-05,2]
[395160816,1764494971250,-500.0,7.819e-05,2]
[395160817,1764494971270,-366.6222373,7.819e-05,2]
[395160818,1764494971288,-151.0,7.822e-05,2]
[395160819,1764494971307,-151.59078118,7.822e-05,2]
[395160820,1764494971328,-500.0,7.822e-05,2]
[395160821,1764494971349,-500.0,7.822e-05,2]
[395160822,1764494971370,-500.0,7.822e-05,2]
[395160823,1764494971392,-500.0,7.823e-05,2]
[395160824,1764494971411,-151.0,7.823e-05,2]
[395160825,1764494971429,-151.0,7.823e-05,2]
[395160826,1764494971448,-500.0,7.823e-05,2]
[395160827,1764494971469,-151.0,7.823e-05,2]
[395160828,1764494971493,-2076.14793948,7.824e-05,2]
[395160927,1764495031863,-300.0,7.745e-05,2]
[395160929,1764495031873,-33.64153303,7.745e-05,2]
[395160931,1764495031889,-266.35846697,7.745e-05,2]
[395160933,1764495031899,-785.42003775,7.745e-05,2]
[395160936,1764495031918,-414.57996225,7.745e-05,2]
[395160938,1764495031927,-6397.78873276,7.746e-05,2]
[395160955,1764495038076,-10285.41619705,7.746e-05,2]
[395160956,1764495038087,-215.0,7.746e-05,2]
[395160957,1764495038096,-231.28369723,7.819e-05,2]
[395160958,1764495038105,-194.5046441,7.819e-05,2]
[395160959,1764495038115,-500.0,7.819e-05,2]
[395160960,1764495038124,-500.0,7.819e-05,2]
[395160961,1764495038133,-500.0,7.819e-05,2]
[395160962,1764495038142,-439662.85206589,7.824e-05,2]
[395160963,1764495038153,-1053.67641307,7.824e-05,2]
[395160991,1764495040044,-1000.0,7.824e-05,2]
[395160992,1764495040099,-3292.95,7.824e-05,2]
[395160999,1764495040486,-2e-08,7.824e-05,2]
[395161011,1764495043017,-29029.89471544,7.824e-05,2]
[395161012,1764495043124,-128376.57615192,7.824e-05,2]
[395161013,1764495043133,-603.2143058,7.83e-05,2]
[395161014,1764495043143,-1192.2251753,7.83e-05,2]
[395161015,1764495043153,-1190.4411347,7.83e-05,2]
[395161016,1764495043162,-558.66025708,7.923e-05,2]
[395161017,1764495043171,-596.1125876,7.93e-05,2]
[395161018,1764495043181,-596.1125879,7.93e-05,2]
[395161019,1764495043190,-596.1125876,7.93e-05,2]
[395161020,1764495043199,-151.0,7.959e-05,2]
[395161021,1764495043209,-500.0,7.959e-05,2]
[395161022,1764495043218,-500.0,7.959e-05,2]
[395161023,1764495043228,-500.0,7.959e-05,2]
[395161024,1764495043237,-500.0,7.96e-05,2]
[395161025,1764495043246,-151.0,7.96e-05,2]
[395161026,1764495043255,-151.0,7.96e-05,2]
[395161027,1764495043264,-500.0,7.96e-05,2]
[395161028,1764495043273,-151.0,7.98e-05,2]
[395161029,1764495043283,-151.0,7.98e-05,2]
[395161030,1764495043292,-790.0,7.98e-05,2]
[395161031,1764495043301,-151.0,7.98e-05,2]
[395161032,1764495043311,-151.50502985,7.98e-05,2]
[395161033,1764495043320,-500.0,7.98e-05,2]
[395161034,1764495043330,-250.0,8.068e-05,2]
[395161035,1764495043339,-151.0,8.096e-05,2]
[395161036,1764495043348,-406.67443489,8.096e-05,2]
[395161037,1764495043358,-500.0,8.096e-05,2]
[395161038,1764495043367,-500.0,8.096e-05,2]
[395161039,1764495043377,-456.40505804,8.097e-05,2]
[395161040,1764495043386,-202.49792026,8.097e-05,2]
[395161041,1764495043395,-500.0,8.097e-05,2]
[395161042,1764495043404,-260.50764934,8.117e-05,2]
[395161043,1764495043413,-198.49162477,8.117e-05,2]
[395161044,1764495043422,-790.0,8.117e-05,2]
[395161045,1764495043431,-151.0,8.117e-05,2]
[395161046,1764495043440,-500.0,8.117e-05,2]
[395161047,1764495043450,-374.32412822,8.122e-05,2]
[395161048,1764495043459,-673.7834308,8.122e-05,2]
[395161049,1764495043468,-1197.83721031,8.132e-05,2]
[395161050,1764495043478,-1871.6206411,8.196e-05,2]
[395161051,1764495043487,-500.0,8.219e-05,2]
[395161052,1764495043496,-593.58871138,8.219e-05,2]
[395161053,1764495043506,-500.0,8.219e-05,2]
[395161054,1764495043515,-151.0,8.233e-05,2]
[395161055,1764495043524,-500.0,8.233e-05,2]
[395161056,1764495043533,-500.0,8.233e-05,2]
[395161057,1764495043542,-790.0,8.254e-05,2]
[395161058,1764495043551,-151.0,8.254e-05,2]
[395161059,1764495043560,-500.0,8.254e-05,2]
[395161060,1764495043569,-500.0,8.254e-05,2]
[395161061,1764495043579,-2692.43858947,8.26e-05,2]
[395161062,1764495043588,-302445.87078367,8.324e-05,2]
[395161063,1764495043599,-792.54,8.324e-05,2]
[395161103,1764495046238,-200.03791465,8.122e-05,2]
[395161104,1764495046250,-51117.74400311,8.324e-05,2]
[395161119,1764495051885,-518.68666993,6.689e-05,2]
[395161120,1764495053523,-470.02203301,6.689e-05,2]
[395161121,1764495054980,-428.76861776,6.689e-05,2]
[395161122,1764495056541,-298.0,6.689e-05,2]
[395161123,1764495058254,-505.0,6.689e-05,2]
[395161124,1764495060152,-574.3275421,6.689e-05,2]
[395161125,1764495062499,-201.35123741,6.688e-05,2]
[395161126,1764495064361,448.66208987,6.622e-05,2]
[395161127,1764495064600,-98.64876259,6.688e-05,2]
[395161128,1764495064621,-110.63426814,6.689e-05,2]
[395161129,1764495066071,-217.0488388,6.689e-05,2]
[395161131,1764495069721,-222.09128577,6.689e-05,2]
[395161132,1764495071722,-191.40036198,6.689e-05,2]
[395161133,1764495077576,-435.90914949,6.689e-05,2]
[395161134,1764495081165,-398.6559954,6.689e-05,2]
[395161135,1764495083208,-308.973905,6.689e-05,2]
[395161140,1764495087049,877.68310694,6.622e-05,2]
[395161144,1764495126869,-225.31875162,6.688e-05,2]